[Event "Late-Titled-Tuesday-Blitz-January-16-2024"]
[Site "Chess.com"]
[Date "2024.01.16"]
[Round "10"]
[White "FairChess_on_YouTube"]
[Black "Beca95"]
[Result "1-0"]
[WhiteElo "3103"]
[BlackElo "2949"]
[TimeControl "180+1"]
[EndTime "15:57:51 PST"]
[Termination "FairChess_on_YouTube won by resignation"]

1. Nf3 {[%clk 0:03:00.9]} 1... d5 {[%clk 0:02:59.7]} 2. d4 {[%clk 0:02:59.9]}
2... Bf5 {[%clk 0:02:59.7]} 3. c4 {[%clk 0:02:58.3]} 3... e6 {[%clk 0:03:00.1]}
4. Nc3 {[%clk 0:02:57]} 4... Nf6 {[%clk 0:02:59.8]} 5. Bg5 {[%clk 0:02:55.2]}
5... c6 {[%clk 0:02:58.8]} 6. cxd5 {[%clk 0:02:45.4]} 6... exd5 {[%clk
0:02:51.8]} 7. Qb3 {[%clk 0:02:45.5]} 7... Qb6 {[%clk 0:02:51.6]} 8. Bxf6 {[%clk
0:02:45.6]} 8... Qxb3 {[%clk 0:02:51.5]} 9. axb3 {[%clk 0:02:45.4]} 9... gxf6
{[%clk 0:02:52.1]} 10. e3 {[%clk 0:02:43.9]} 10... Nd7 {[%clk 0:02:40.9]} 11.
Nh4 {[%clk 0:02:42.9]} 11... Be6 {[%clk 0:02:38.9]} 12. Bd3 {[%clk 0:02:42.4]}
12... Nb6 {[%clk 0:02:34.4]} 13. Kd2 {[%clk 0:02:33]} 13... Bb4 {[%clk
0:02:32.6]} 14. Kc2 {[%clk 0:02:30]} 14... a5 {[%clk 0:02:31.1]} 15. Nf5 {[%clk
0:02:25.7]} 15... Kd7 {[%clk 0:02:27.3]} 16. Ne2 {[%clk 0:02:16.4]} 16... Nc8
{[%clk 0:02:18.8]} 17. Nf4 {[%clk 0:02:09.1]} 17... Nd6 {[%clk 0:02:18.5]} 18.
Nh6 {[%clk 0:02:05.1]} 18... Ke7 {[%clk 0:02:12.7]} 19. g4 {[%clk 0:02:01.5]}
19... Rac8 {[%clk 0:02:06.2]} 20. Rad1 {[%clk 0:01:44.7]} 20... Ra8 {[%clk
0:01:36.7]} 21. h4 {[%clk 0:01:42.1]} 21... Rhc8 {[%clk 0:01:19.5]} 22. h5
{[%clk 0:01:28.9]} 22... Kf8 {[%clk 0:01:08.5]} 23. Rdg1 {[%clk 0:01:07.1]}
23... Kg7 {[%clk 0:01:07.8]} 24. Nf5+ {[%clk 0:00:58.1]} 24... Bxf5 {[%clk
0:01:07.9]} 25. h6+ {[%clk 0:00:56.5]} 25... Kh8 {[%clk 0:00:57.5]} 26. gxf5
{[%clk 0:00:53]} 26... Rg8 {[%clk 0:00:47.3]} 27. Nh5 {[%clk 0:00:48]} 27...
Rxg1 {[%clk 0:00:46.6]} 28. Rxg1 {[%clk 0:00:47.9]} 28... Ne8 {[%clk 0:00:45.8]}
29. e4 {[%clk 0:00:37.6]} 29... Bf8 {[%clk 0:00:28.3]} 30. exd5 {[%clk 0:00:31]}
30... cxd5 {[%clk 0:00:27.2]} 31. Bb5 {[%clk 0:00:30.9]} 31... Nd6 {[%clk
0:00:22.9]} 32. Nxf6 {[%clk 0:00:27.9]} 32... Bxh6 {[%clk 0:00:22.6]} 33. Bd3
{[%clk 0:00:23.5]} 33... Bg7 {[%clk 0:00:21.3]} 34. Nxh7 {[%clk 0:00:18.1]}
34... Bxd4 {[%clk 0:00:21.1]} 35. f6 {[%clk 0:00:16.2]} 35... Rc8+ {[%clk
0:00:19.4]} 36. Kb1 {[%clk 0:00:16]} 36... Ne4 {[%clk 0:00:08.8]} 37. Bxe4
{[%clk 0:00:11.5]} 37... dxe4 {[%clk 0:00:09.7]} 38. Ng5 {[%clk 0:00:11.2]}
38... Bxf6 {[%clk 0:00:09.9]} 39. Nxf7+ {[%clk 0:00:10.3]} 39... Kh7 {[%clk
0:00:10.3]} 40. Nd6 {[%clk 0:00:11]} 40... Rf8 {[%clk 0:00:09.9]} 41. Nxe4
{[%clk 0:00:11.1]} 41... Be5 {[%clk 0:00:07.8]} 42. Rg5 {[%clk 0:00:10.6]} 42...
Bc7 {[%clk 0:00:05.8]} 43. Rc5 {[%clk 0:00:09.7]} 43... Bd8 {[%clk 0:00:05.9]}
44. Rd5 {[%clk 0:00:09.1]} 44... Kg6 {[%clk 0:00:05.3]} 45. Kc2 {[%clk
0:00:08.7]} 45... Bc7 {[%clk 0:00:05.5]} 46. Rd7 {[%clk 0:00:08.1]} 46... Rc8
{[%clk 0:00:05.4]} 47. Kd3 {[%clk 0:00:08.1]} 47... b6 {[%clk 0:00:05]} 48. Nd6
{[%clk 0:00:06.8]} 48... Rd8 {[%clk 0:00:02.6]} 49. Rxd8 {[%clk 0:00:05.8]}
49... Bxd8 {[%clk 0:00:03.5]} 50. Kc4 {[%clk 0:00:06.2]} 50... Kf6 {[%clk
0:00:04]} 51. Kb5 {[%clk 0:00:06.3]} 51... Ke5 {[%clk 0:00:03.6]} 52. Nc4+
{[%clk 0:00:06.3]} 52... Ke4 {[%clk 0:00:04.2]} 53. Nxb6 {[%clk 0:00:06.5]}
53... Kf3 {[%clk 0:00:04.8]} 54. Nc4 {[%clk 0:00:06.4]} 54... Kxf2 {[%clk
0:00:05.4]} 55. Nxa5 {[%clk 0:00:07]} 55... Ke3 {[%clk 0:00:05.6]} 56. Nc6
{[%clk 0:00:05.7]} 56... Bc7 {[%clk 0:00:06.2]} 57. Kc4 {[%clk 0:00:05.8]} 57...
Kd2 {[%clk 0:00:05.8]} 58. b4 {[%clk 0:00:05.1]} 58... Kc2 {[%clk 0:00:06.3]}
59. b3 {[%clk 0:00:05.8]} 59... Kb2 {[%clk 0:00:06.7]} 60. b5 {[%clk 0:00:06.4]}
60... Ka3 {[%clk 0:00:07.2]} 61. Nb4 {[%clk 0:00:06.7]} 61... Bd8 {[%clk
0:00:06.6]} 62. Nd5 {[%clk 0:00:07.2]} 62... Bh4 {[%clk 0:00:05.3]} 63. b6
{[%clk 0:00:07.5]} 63... Bg3 {[%clk 0:00:05.9]} 64. b7 {[%clk 0:00:08]} 64...
Bd6 {[%clk 0:00:05.2]} 65. Nb4 {[%clk 0:00:07.8]} 1-0

[Event "Late-Titled-Tuesday-Blitz-January-16-2024"]
[Site "Chess.com"]
[Date "2024.01.16"]
[Round "10"]
[White "vugarrasulov"]
[Black "iturrizaga"]
[Result "0-1"]
[WhiteElo "2966"]
[BlackElo "3020"]
[TimeControl "180+1"]
[EndTime "15:57:53 PST"]
[Termination "iturrizaga won by checkmate"]

1. e4 {[%clk 0:03:00.9]} 1... c5 {[%clk 0:03:00.2]} 2. Nf3 {[%clk 0:03:00.9]}
2... e6 {[%clk 0:03:00.8]} 3. c3 {[%clk 0:03:00.3]} 3... d5 {[%clk 0:03:00.5]}
4. exd5 {[%clk 0:03:00.6]} 4... Qxd5 {[%clk 0:03:01.4]} 5. d4 {[%clk 0:03:00.3]}
5... Nf6 {[%clk 0:03:01.9]} 6. Na3 {[%clk 0:02:58.1]} 6... Nc6 {[%clk
0:03:02.2]} 7. Nb5 {[%clk 0:02:49.9]} 7... Qd8 {[%clk 0:03:02.3]} 8. dxc5 {[%clk
0:02:40.1]} 8... Bxc5 {[%clk 0:03:03.2]} 9. Qxd8+ {[%clk 0:02:39.5]} 9... Kxd8
{[%clk 0:03:04.1]} 10. Bf4 {[%clk 0:02:35.1]} 10... Nd5 {[%clk 0:03:04.4]} 11.
Bd6 {[%clk 0:02:33.1]} 11... Bxd6 {[%clk 0:03:00.4]} 12. Nxd6 {[%clk 0:02:34]}
12... Ke7 {[%clk 0:03:00.7]} 13. Nc4 {[%clk 0:02:31.6]} 13... b6 {[%clk
0:02:59.1]} 14. Nfe5 {[%clk 0:02:23.9]} 14... Nxe5 {[%clk 0:02:54.8]} 15. Nxe5
{[%clk 0:02:24.8]} 15... Bb7 {[%clk 0:02:55.4]} 16. f3 {[%clk 0:02:23.5]} 16...
Rac8 {[%clk 0:02:54.3]} 17. O-O-O {[%clk 0:02:13.5]} 17... f6 {[%clk 0:02:49.8]}
18. Nd3 {[%clk 0:02:08]} 18... Rhd8 {[%clk 0:02:38.4]} 19. Nf2 {[%clk
0:02:03.2]} 19... Rd7 {[%clk 0:02:01.3]} 20. Bd3 {[%clk 0:01:58.6]} 20... Ne3
{[%clk 0:01:46.2]} 21. Rde1 {[%clk 0:01:32.1]} 21... Nxg2 {[%clk 0:01:45.1]} 22.
Reg1 {[%clk 0:01:32.4]} 22... Bxf3 {[%clk 0:01:21.9]} 23. Be4 {[%clk 0:01:32]}
23... Bxe4 {[%clk 0:01:21.8]} 24. Nxe4 {[%clk 0:01:32.9]} 24... Rc4 {[%clk
0:01:19.4]} 25. Nf2 {[%clk 0:00:55.7]} 25... Nf4 {[%clk 0:01:08.6]} 26. Rxg7+
{[%clk 0:00:56.6]} 26... Kd8 {[%clk 0:01:08.7]} 27. Rg8+ {[%clk 0:00:32.5]}
27... Kc7 {[%clk 0:01:07.5]} 28. Kc2 {[%clk 0:00:33.4]} 28... Rc5 {[%clk
0:00:57.4]} 29. Ne4 {[%clk 0:00:29.1]} 29... Rf5 {[%clk 0:00:50.2]} 30. Rf1
{[%clk 0:00:29.5]} 30... Nd5 {[%clk 0:00:32.9]} 31. Rxf5 {[%clk 0:00:29.5]}
31... exf5 {[%clk 0:00:33.8]} 32. Ng3 {[%clk 0:00:25.3]} 32... f4 {[%clk
0:00:17.3]} 33. Nf5 {[%clk 0:00:22.1]} 33... Ne3+ {[%clk 0:00:14.9]} 34. Nxe3
{[%clk 0:00:22.5]} 34... fxe3 {[%clk 0:00:15.8]} 35. Re8 {[%clk 0:00:21.5]}
35... Rd2+ {[%clk 0:00:15.7]} 36. Kb3 {[%clk 0:00:22.1]} 36... e2 {[%clk
0:00:14.5]} 37. c4 {[%clk 0:00:20]} 37... Kd6 {[%clk 0:00:11.8]} 38. Kc3 {[%clk
0:00:18.2]} 38... e1=Q {[%clk 0:00:12.1]} 39. Rxe1 {[%clk 0:00:18]} 39... Rxh2
{[%clk 0:00:11.6]} 40. Rd1+ {[%clk 0:00:15.9]} 40... Ke6 {[%clk 0:00:11.6]} 41.
Re1+ {[%clk 0:00:16.5]} 41... Kf7 {[%clk 0:00:11.7]} 42. Rd1 {[%clk 0:00:16.8]}
42... f5 {[%clk 0:00:12.3]} 43. Rd7+ {[%clk 0:00:16.9]} 43... Ke6 {[%clk
0:00:11.8]} 44. Rxa7 {[%clk 0:00:17.8]} 44... f4 {[%clk 0:00:12.3]} 45. Rb7
{[%clk 0:00:17.5]} 45... f3 {[%clk 0:00:12.5]} 46. Rxb6+ {[%clk 0:00:16.1]}
46... Ke5 {[%clk 0:00:13]} 47. Rb8 {[%clk 0:00:11.6]} 47... f2 {[%clk
0:00:07.3]} 48. Rf8 {[%clk 0:00:11.1]} 48... Ke4 {[%clk 0:00:07.6]} 49. c5
{[%clk 0:00:11.1]} 49... Rh3+ {[%clk 0:00:08.1]} 50. Kb4 {[%clk 0:00:01.5]}
50... Rf3 {[%clk 0:00:09]} 51. Re8+ {[%clk 0:00:01.9]} 51... Kf4 {[%clk
0:00:06.9]} 52. Rf8+ {[%clk 0:00:02.4]} 52... Kg3 {[%clk 0:00:07.1]} 53. Rg8+
{[%clk 0:00:02.6]} 53... Kh2 {[%clk 0:00:07]} 54. Rg7 {[%clk 0:00:01.7]} 54...
f1=Q {[%clk 0:00:07.2]} 55. Rxh7+ {[%clk 0:00:01.4]} 55... Rh3 {[%clk
0:00:07.5]} 56. Rxh3+ {[%clk 0:00:01.4]} 56... Kxh3 {[%clk 0:00:08.1]} 57. c6
{[%clk 0:00:01.7]} 57... Qa6 {[%clk 0:00:08.1]} 58. Kc5 {[%clk 0:00:02.2]} 58...
Kg4 {[%clk 0:00:07.6]} 59. b4 {[%clk 0:00:01.9]} 59... Kf5 {[%clk 0:00:07.5]}
60. b5 {[%clk 0:00:02.5]} 60... Qa3+ {[%clk 0:00:07.7]} 61. Kb6 {[%clk
0:00:02.6]} 61... Ke6 {[%clk 0:00:08.1]} 62. Kb7 {[%clk 0:00:02.7]} 62... Qc5
{[%clk 0:00:07.4]} 63. b6 {[%clk 0:00:02.5]} 63... Kd6 {[%clk 0:00:07.3]} 64. c7
{[%clk 0:00:03.1]} 64... Qc6+ {[%clk 0:00:07.2]} 65. Ka7 {[%clk 0:00:03.4]}
65... Kd7 {[%clk 0:00:06.9]} 66. a4 {[%clk 0:00:03.1]} 66... Qxa4+ {[%clk
0:00:06.9]} 67. Kb8 {[%clk 0:00:03.8]} 67... Qc6 {[%clk 0:00:06.8]} 68. Ka7
{[%clk 0:00:03.7]} 68... Kc8 {[%clk 0:00:06.7]} 69. Ka6 {[%clk 0:00:04.2]} 69...
Qa4# {[%clk 0:00:07.1]} 0-1

[Event "Late-Titled-Tuesday-Blitz-January-16-2024"]
[Site "Chess.com"]
[Date "2024.01.16"]
[Round "10"]
[White "enriquetejedor"]
[Black "Filipets"]
[Result "0-1"]
[WhiteElo "2749"]
[BlackElo "2597"]
[TimeControl "180+1"]
[EndTime "15:57:56 PST"]
[Termination "Filipets won by resignation"]

1. c3 {[%clk 0:02:55.7]} 1... g6 {[%clk 0:02:48.3]} 2. h4 {[%clk 0:02:55]} 2...
Nf6 {[%clk 0:02:45.8]} 3. h5 {[%clk 0:02:52.2]} 3... Nxh5 {[%clk 0:02:43.9]} 4.
e4 {[%clk 0:02:38.8]} 4... d5 {[%clk 0:02:39]} 5. exd5 {[%clk 0:02:25.6]} 5...
Qxd5 {[%clk 0:02:37.1]} 6. d4 {[%clk 0:02:25.8]} 6... c5 {[%clk 0:02:35]} 7. Nf3
{[%clk 0:02:09.4]} 7... Bg7 {[%clk 0:02:31.9]} 8. Be3 {[%clk 0:01:59.8]} 8...
cxd4 {[%clk 0:02:29.1]} 9. Bxd4 {[%clk 0:01:56.8]} 9... Nc6 {[%clk 0:02:22.3]}
10. Rxh5 {[%clk 0:01:50.6]} 10... Qe4+ {[%clk 0:02:04.2]} 11. Be2 {[%clk
0:01:37.4]} 11... Nxd4 {[%clk 0:02:01.4]} 12. cxd4 {[%clk 0:00:54.9]} 12... gxh5
{[%clk 0:02:00.1]} 13. Nc3 {[%clk 0:00:54.9]} 13... Qg6 {[%clk 0:01:56]} 14.
Qa4+ {[%clk 0:00:50.2]} 14... Bd7 {[%clk 0:01:54]} 15. Bb5 {[%clk 0:00:50.5]}
15... Rd8 {[%clk 0:01:49.8]} 16. g3 {[%clk 0:00:41.9]} 16... Qf5 {[%clk
0:01:38.8]} 17. Nh4 {[%clk 0:00:33.9]} 17... Bxb5 {[%clk 0:01:30.1]} 18. Nxb5
{[%clk 0:00:23.1]} 18... Qd7 {[%clk 0:01:30]} 19. Nf3 {[%clk 0:00:13.7]} 19...
O-O {[%clk 0:01:25.1]} 20. Qb3 {[%clk 0:00:09.7]} 20... a6 {[%clk 0:01:18]} 21.
Nc3 {[%clk 0:00:09.6]} 21... Qe6+ {[%clk 0:01:13.7]} 22. Qxe6 {[%clk 0:00:08.9]}
22... fxe6 {[%clk 0:01:14.6]} 23. Ng5 {[%clk 0:00:06.6]} 23... Bxd4 {[%clk
0:01:13.2]} 24. Nxe6 {[%clk 0:00:05.6]} 24... Bxf2+ {[%clk 0:01:13.1]} 25. Ke2
{[%clk 0:00:04.5]} 25... Bxg3 {[%clk 0:01:12.6]} 26. Ne4 {[%clk 0:00:02.3]}
26... h4 {[%clk 0:01:08.3]} 27. Nxd8 {[%clk 0:00:02.2]} 27... Rxd8 {[%clk
0:01:08.1]} 28. Rg1 {[%clk 0:00:02.2]} 28... Kf7 {[%clk 0:01:02.5]} 29. Nxg3
{[%clk 0:00:01.7]} 29... hxg3 {[%clk 0:01:03.4]} 30. Rxg3 {[%clk 0:00:02.1]}
30... h5 {[%clk 0:01:03.7]} 31. Rf3+ {[%clk 0:00:02.2]} 31... Kg6 {[%clk
0:01:01.6]} 32. Rg3+ {[%clk 0:00:02.1]} 32... Kf6 {[%clk 0:01:01.6]} 33. Rf3+
{[%clk 0:00:02.2]} 33... Kg5 {[%clk 0:01:01.5]} 34. Rb3 {[%clk 0:00:03.1]} 34...
b5 {[%clk 0:01:01]} 35. Re3 {[%clk 0:00:03.1]} 35... h4 {[%clk 0:00:45.6]} 36.
Rxe7 {[%clk 0:00:03]} 36... Rh8 {[%clk 0:00:46.3]} 37. Rg7+ {[%clk 0:00:02.6]}
37... Kf6 {[%clk 0:00:45.2]} 38. Rg1 {[%clk 0:00:02.5]} 38... h3 {[%clk
0:00:42.9]} 39. Kf2 {[%clk 0:00:02.8]} 39... h2 {[%clk 0:00:41.1]} 40. Rh1
{[%clk 0:00:02.6]} 40... Ke5 {[%clk 0:00:40.6]} 41. Kg2 {[%clk 0:00:02.9]} 41...
Ke4 {[%clk 0:00:37.5]} 42. Re1+ {[%clk 0:00:02.4]} 42... Kd3 {[%clk 0:00:37.8]}
43. Kh1 {[%clk 0:00:03.3]} 43... Rh6 {[%clk 0:00:32.6]} 44. Rc1 {[%clk
0:00:02.8]} 44... Kd2 {[%clk 0:00:26.6]} 45. Rc7 {[%clk 0:00:02.9]} 45... Rh4
{[%clk 0:00:23]} 46. Rc6 {[%clk 0:00:02.8]} 46... a5 {[%clk 0:00:15.8]} 47. a3
{[%clk 0:00:03.1]} 47... b4 {[%clk 0:00:11.7]} 48. Rc5 {[%clk 0:00:03]} 48...
bxa3 {[%clk 0:00:10.3]} 49. bxa3 {[%clk 0:00:03.9]} 49... Ra4 {[%clk 0:00:10.5]}
50. Kxh2 {[%clk 0:00:02.2]} 50... Rxa3 {[%clk 0:00:11.1]} 51. Kg2 {[%clk
0:00:02.5]} 51... a4 {[%clk 0:00:08.5]} 52. Kf2 {[%clk 0:00:02.8]} 52... Rc3
{[%clk 0:00:07.1]} 53. Rd5+ {[%clk 0:00:02.4]} 53... Kc2 {[%clk 0:00:06.3]} 54.
Ke2 {[%clk 0:00:02]} 54... a3 {[%clk 0:00:05.5]} 55. Ra5 {[%clk 0:00:01.3]}
55... Kb2 {[%clk 0:00:02.7]} 56. Kd2 {[%clk 0:00:01.6]} 56... Rb3 {[%clk
0:00:02.8]} 57. Rc5 {[%clk 0:00:01.4]} 57... a2 {[%clk 0:00:02.5]} 58. Rc2+
{[%clk 0:00:01.4]} 58... Ka3 {[%clk 0:00:03.2]} 59. Rc1 {[%clk 0:00:01.2]} 59...
Rb1 {[%clk 0:00:03.6]} 60. Rc3+ {[%clk 0:00:01.6]} 60... Kb4 {[%clk 0:00:04.2]}
61. Rc7 {[%clk 0:00:01.4]} 61... a1=Q {[%clk 0:00:04.1]} 62. Ke3 {[%clk
0:00:01.9]} 62... Kb5 {[%clk 0:00:04.4]} 63. Rc2 {[%clk 0:00:01.5]} 63... Kb6
{[%clk 0:00:05.3]} 64. Kd3 {[%clk 0:00:01.2]} 64... Re1 {[%clk 0:00:06.2]} 65.
Rd2 {[%clk 0:00:01.1]} 65... Rd1 {[%clk 0:00:06.4]} 66. Kc2 {[%clk 0:00:01.3]}
66... Rxd2+ {[%clk 0:00:05.7]} 67. Kb3 {[%clk 0:00:01.8]} 67... Qb1+ {[%clk
0:00:05.7]} 68. Kc4 {[%clk 0:00:01.8]} 68... Rc2+ {[%clk 0:00:06.1]} 69. Kd4
{[%clk 0:00:02]} 69... Qd1+ {[%clk 0:00:07]} 70. Ke3 {[%clk 0:00:02.8]} 70...
Re2+ {[%clk 0:00:07.9]} 0-1

[Event "Late-Titled-Tuesday-Blitz-January-16-2024"]
[Site "Chess.com"]
[Date "2024.01.16"]
[Round "10"]
[White "mightysmasher"]
[Black "iwanyu"]
[Result "0-1"]
[WhiteElo "2567"]
[BlackElo "2679"]
[TimeControl "180+1"]
[EndTime "15:58:01 PST"]
[Termination "iwanyu won by checkmate"]

1. e4 {[%clk 0:02:45.3]} 1... c6 {[%clk 0:02:57.3]} 2. d4 {[%clk 0:02:44.3]}
2... d5 {[%clk 0:02:58.2]} 3. Nd2 {[%clk 0:02:44.7]} 3... dxe4 {[%clk
0:02:58.4]} 4. Nxe4 {[%clk 0:02:45.6]} 4... Nf6 {[%clk 0:02:59.1]} 5. Nxf6+
{[%clk 0:02:46.1]} 5... exf6 {[%clk 0:03:00]} 6. c3 {[%clk 0:02:46.7]} 6... Bd6
{[%clk 0:03:00.4]} 7. Bd3 {[%clk 0:02:47.2]} 7... O-O {[%clk 0:03:01]} 8. Ne2
{[%clk 0:02:47.7]} 8... Re8 {[%clk 0:02:59.2]} 9. O-O {[%clk 0:02:47.8]} 9...
Na6 {[%clk 0:02:59.5]} 10. Bf4 {[%clk 0:02:36.8]} 10... Nc7 {[%clk 0:02:58.1]}
11. Re1 {[%clk 0:02:33.8]} 11... Bg4 {[%clk 0:02:09.9]} 12. f3 {[%clk 0:02:28]}
12... Be6 {[%clk 0:02:07.5]} 13. Bxd6 {[%clk 0:02:26.9]} 13... Qxd6 {[%clk
0:02:07.9]} 14. Qd2 {[%clk 0:02:26.9]} 14... Nd5 {[%clk 0:02:05.1]} 15. Ng3
{[%clk 0:02:21.6]} 15... Nf4 {[%clk 0:02:01.3]} 16. Bf1 {[%clk 0:02:18.6]} 16...
Rad8 {[%clk 0:01:57.2]} 17. Rad1 {[%clk 0:02:16.8]} 17... Bxa2 {[%clk
0:01:52.5]} 18. Ne4 {[%clk 0:02:07.8]} 18... Qc7 {[%clk 0:01:48]} 19. Ra1 {[%clk
0:02:07.2]} 19... Bd5 {[%clk 0:01:42.6]} 20. Rxa7 {[%clk 0:02:06.3]} 20... Ne6
{[%clk 0:01:32.8]} 21. Raa1 {[%clk 0:01:48.7]} 21... h6 {[%clk 0:01:16.7]} 22.
Qf2 {[%clk 0:01:27.5]} 22... b6 {[%clk 0:01:11.7]} 23. Qg3 {[%clk 0:01:23.9]}
23... Qxg3 {[%clk 0:01:05.9]} 24. Nxg3 {[%clk 0:01:23.6]} 24... c5 {[%clk
0:01:04.2]} 25. Bb5 {[%clk 0:01:22]} 25... Rf8 {[%clk 0:01:00.9]} 26. dxc5
{[%clk 0:01:19.1]} 26... Nxc5 {[%clk 0:01:01.8]} 27. Nf5 {[%clk 0:01:18.9]}
27... Be6 {[%clk 0:01:00.9]} 28. Nd4 {[%clk 0:01:18]} 28... Bd7 {[%clk 0:00:52]}
29. Bc4 {[%clk 0:01:13.9]} 29... Rfe8 {[%clk 0:00:48.8]} 30. Rxe8+ {[%clk
0:01:12.1]} 30... Bxe8 {[%clk 0:00:49.7]} 31. b4 {[%clk 0:01:09.3]} 31... Na4
{[%clk 0:00:49.1]} 32. Ne2 {[%clk 0:00:53.3]} 32... Rd2 {[%clk 0:00:30.8]} 33.
b5 {[%clk 0:00:50.9]} 33... Nb2 {[%clk 0:00:29.1]} 34. Ra8 {[%clk 0:00:24.3]}
34... Kf8 {[%clk 0:00:29]} 35. Nd4 {[%clk 0:00:20.4]} 35... Nxc4 {[%clk
0:00:28.8]} 36. Rc8 {[%clk 0:00:20.2]} 36... Ne3 {[%clk 0:00:26.9]} 37. g3
{[%clk 0:00:18.3]} 37... Rg2+ {[%clk 0:00:22.2]} 38. Kh1 {[%clk 0:00:18.1]}
38... Rf2 {[%clk 0:00:20.8]} 39. h4 {[%clk 0:00:17.7]} 39... Ke7 {[%clk
0:00:20.3]} 40. Rb8 {[%clk 0:00:16.5]} 40... Nd5 {[%clk 0:00:16.1]} 41. Rb7+
{[%clk 0:00:15.9]} 41... Kd6 {[%clk 0:00:15.9]} 42. Rb8 {[%clk 0:00:14.9]} 42...
Bd7 {[%clk 0:00:15.8]} 43. Rg8 {[%clk 0:00:13.9]} 43... g6 {[%clk 0:00:15.1]}
44. g4 {[%clk 0:00:12.7]} 44... Nxc3 {[%clk 0:00:12.3]} 45. Rf8 {[%clk
0:00:11.1]} 45... Rd2 {[%clk 0:00:12]} 46. Nb3 {[%clk 0:00:10]} 46... Rd1+
{[%clk 0:00:12.2]} 47. Kh2 {[%clk 0:00:09.1]} 47... Ke7 {[%clk 0:00:12.2]} 48.
Rb8 {[%clk 0:00:09]} 48... Be6 {[%clk 0:00:12.4]} 49. Rxb6 {[%clk 0:00:06.2]}
49... Bxb3 {[%clk 0:00:11.8]} 50. Rb7+ {[%clk 0:00:07.1]} 50... Kf8 {[%clk
0:00:11.7]} 51. Rb6 {[%clk 0:00:08]} 51... Bd5 {[%clk 0:00:11.6]} 52. Rxf6
{[%clk 0:00:07]} 52... Rd2+ {[%clk 0:00:11.3]} 53. Kg3 {[%clk 0:00:06.8]} 53...
Nxb5 {[%clk 0:00:12.2]} 54. Rb6 {[%clk 0:00:07]} 54... Nd4 {[%clk 0:00:12.5]}
55. h5 {[%clk 0:00:07.4]} 55... Nxf3 {[%clk 0:00:12.4]} 56. hxg6 {[%clk
0:00:07.5]} 56... Ng5 {[%clk 0:00:11.1]} 57. g7+ {[%clk 0:00:05.8]} 57... Kxg7
{[%clk 0:00:11.2]} 58. Rg6+ {[%clk 0:00:05.6]} 58... Kxg6 {[%clk 0:00:10.6]} 59.
Kf4 {[%clk 0:00:05.4]} 59... Rd3 {[%clk 0:00:09.4]} 60. Ke5 {[%clk 0:00:05.6]}
60... Re3+ {[%clk 0:00:09.6]} 61. Kxd5 {[%clk 0:00:05.8]} 61... Re4 {[%clk
0:00:09.1]} 62. Kd6 {[%clk 0:00:05.7]} 62... Rxg4 {[%clk 0:00:09.3]} 63. Ke5
{[%clk 0:00:05.8]} 63... Re4+ {[%clk 0:00:09.4]} 64. Kd5 {[%clk 0:00:06.3]}
64... Re6 {[%clk 0:00:10.1]} 65. Kd4 {[%clk 0:00:06.5]} 65... h5 {[%clk
0:00:10.6]} 66. Kd5 {[%clk 0:00:07.4]} 66... h4 {[%clk 0:00:11.4]} 67. Kd4
{[%clk 0:00:07.8]} 67... h3 {[%clk 0:00:12]} 68. Kd5 {[%clk 0:00:08.7]} 68... h2
{[%clk 0:00:12.7]} 69. Kd4 {[%clk 0:00:09.6]} 69... h1=Q {[%clk 0:00:12.7]} 70.
Kc5 {[%clk 0:00:10.5]} 70... Qe4 {[%clk 0:00:12.4]} 71. Kb5 {[%clk 0:00:10.5]}
71... Qd5+ {[%clk 0:00:12.6]} 72. Kb4 {[%clk 0:00:10.6]} 72... Re4+ {[%clk
0:00:12.9]} 73. Kc3 {[%clk 0:00:11.1]} 73... Qc4+ {[%clk 0:00:13.2]} 74. Kb2
{[%clk 0:00:10.6]} 74... Re2+ {[%clk 0:00:13.4]} 75. Kb1 {[%clk 0:00:10.9]}
75... Qb3+ {[%clk 0:00:13.1]} 76. Kc1 {[%clk 0:00:10.6]} 76... Qc2# {[%clk
0:00:12.6]} 0-1